[Event "Titled Tuesday Blitz March 28 Late 2023"]
[White "Srinath, Rao S.V."]
[Black "Napoli, Nicolo"]
[WhiteFideId "5028876"]
[BlackFideId "813702"]
[WhiteElo "2196"]
[BlackElo "2308"]
[Result "1-0"]
[Round "01"]
[TimeControl "180+2"]
[Date "2023.03.28"]
[WhiteClock "0:00:36"]
[BlackClock "0:00:03"]

1. d4 {[%clk 0:02:59]}  Nf6 {[%clk 0:02:59]} 2. Nc3 {[%clk 0:02:59]}  e6 {[%clk 0:02:58]} 3. e4 {[%clk 0:02:57]}  Bb4 {[%clk 0:02:59]} 4. Bd3 {[%clk 0:02:56]}  d5 {[%clk 0:02:58]} 5. e5 {[%clk 0:02:55]}  Ne4 {[%clk 0:02:58]} 6. Ne2 {[%clk 0:02:55]}  c5 {[%clk 0:02:54]} 7. a3 {[%clk 0:02:53]}  Nxc3 {[%clk 0:02:46]} 8. bxc3 {[%clk 0:02:54]}  Ba5 {[%clk 0:02:46]} 9. Bb5+ {[%clk 0:02:41]}  Bd7 {[%clk 0:02:44]} 10. Bxd7+ {[%clk 0:02:41]}  Nxd7 {[%clk 0:02:44]} 11. O-O {[%clk 0:02:42]}  Rc8 {[%clk 0:02:44]} 12. Rb1 {[%clk 0:02:30]}  b6 {[%clk 0:02:43]} 13. Qd3 {[%clk 0:02:28]}  O-O {[%clk 0:02:31]} 14. Qg3 {[%clk 0:02:26]}  cxd4 {[%clk 0:02:24]} 15. Bh6 {[%clk 0:02:23]}  g6 {[%clk 0:02:23]} 16. Bxf8 {[%clk 0:02:23]}  Qxf8 {[%clk 0:02:22]} 17. cxd4 {[%clk 0:02:23]}  Nb8 {[%clk 0:02:01]} 18. Nf4 {[%clk 0:02:20]}  Qh6 {[%clk 0:01:56]} 19. c4 {[%clk 0:02:07]}  Rxc4 {[%clk 0:01:53]} 20. Rbc1 {[%clk 0:01:58]}  Bd2 {[%clk 0:01:43]} 21. Rxc4 {[%clk 0:01:54]}  dxc4 {[%clk 0:01:44]} 22. Ne2 {[%clk 0:01:54]}  Nc6 {[%clk 0:01:39]} 23. Qf3 {[%clk 0:01:53]}  Na5 {[%clk 0:01:34]} 24. d5 {[%clk 0:01:51]}  exd5 {[%clk 0:01:31]} 25. Qxd5 {[%clk 0:01:52]}  c3 {[%clk 0:01:28]} 26. e6 {[%clk 0:01:51]}  fxe6 {[%clk 0:01:28]} 27. Qxe6+ {[%clk 0:01:52]}  Kg7 {[%clk 0:01:22]} 28. Nd4 {[%clk 0:01:46]}  Qf4 {[%clk 0:01:10]} 29. Qd7+ {[%clk 0:01:41]}  Kh6 {[%clk 0:01:08]} 30. g3 {[%clk 0:01:40]}  Qf6 {[%clk 0:01:00]} 31. Kg2 {[%clk 0:01:15]}  Nc4 {[%clk 0:00:59]} 32. Qd5 {[%clk 0:01:08]}  Ne5 {[%clk 0:00:51]} 33. h3 {[%clk 0:01:04]}  Nf7 {[%clk 0:00:37]} 34. Nf3 {[%clk 0:00:57]}  Ng5 {[%clk 0:00:35]} 35. Nxd2 {[%clk 0:00:55]}  cxd2 {[%clk 0:00:35]} 36. Qxd2 {[%clk 0:00:56]}  Kg7 {[%clk 0:00:32]} 37. Qd7+ {[%clk 0:00:46]}  Kh6 {[%clk 0:00:32]} 38. f4 {[%clk 0:00:46]}  Ne4 {[%clk 0:00:26]} 39. g4 {[%clk 0:00:39]}  Qb2+ {[%clk 0:00:26]} 40. Kg1 {[%clk 0:00:39]}  Qd2 {[%clk 0:00:12]} 41. g5+ {[%clk 0:00:39]}  Nxg5 {[%clk 0:00:03]} 42. Qxd2 {[%clk 0:00:36]} 1-0


[Site "https://www.chess.com"]

[Event "Titled Tuesday Blitz March 28 Late 2023"]
[White "Lenaerts, Lennert"]
[Black "Stanisz, Patryk"]
[WhiteFideId "211435"]
[BlackFideId "1123106"]
[WhiteElo "2334"]
[BlackElo "2069"]
[Result "1-0"]
[Round "01"]
[TimeControl "180+2"]
[Date "2023.03.28"]
[WhiteClock "0:00:24"]
[BlackClock "0:00:04"]

1. d4 {[%clk 0:03:00]}  d5 {[%clk 0:02:59]} 2. c4 {[%clk 0:02:59]}  c6 {[%clk 0:02:59]} 3. cxd5 {[%clk 0:02:59]}  cxd5 {[%clk 0:02:59]} 4. Bf4 {[%clk 0:03:00]}  Nc6 {[%clk 0:02:58]} 5. Nc3 {[%clk 0:03:01]}  a6 {[%clk 0:02:58]} 6. e3 {[%clk 0:03:00]}  Nf6 {[%clk 0:02:58]} 7. Rc1 {[%clk 0:02:59]}  e6 {[%clk 0:02:57]} 8. Bd3 {[%clk 0:02:59]}  Bd6 {[%clk 0:02:57]} 9. Bxd6 {[%clk 0:02:58]}  Qxd6 {[%clk 0:02:58]} 10. f4 {[%clk 0:02:59]}  O-O {[%clk 0:02:57]} 11. Nf3 {[%clk 0:02:59]}  Bd7 {[%clk 0:02:54]} 12. O-O {[%clk 0:02:59]}  b5 {[%clk 0:02:48]} 13. Ne5 {[%clk 0:03:00]}  Rfc8 {[%clk 0:02:47]} 14. g4 {[%clk 0:02:59]}  g6 {[%clk 0:02:34]} 15. Qe1 {[%clk 0:02:47]}  Nb4 {[%clk 0:02:02]} 16. Bb1 {[%clk 0:02:45]}  Be8 {[%clk 0:02:01]} 17. Qh4 {[%clk 0:02:44]}  Nd7 {[%clk 0:02:01]} 18. Rf3 {[%clk 0:02:30]}  f6 {[%clk 0:01:55]} 19. Nxd7 {[%clk 0:02:27]}  Qxd7 {[%clk 0:01:55]} 20. Qxf6 {[%clk 0:02:27]}  Rc7 {[%clk 0:01:47]} 21. f5 {[%clk 0:02:22]}  exf5 {[%clk 0:01:41]} 22. gxf5 {[%clk 0:02:23]}  Rc6 {[%clk 0:01:42]} 23. Qg5 {[%clk 0:02:15]}  Rd6 {[%clk 0:01:27]} 24. h4 {[%clk 0:02:09]}  Kh8 {[%clk 0:01:23]} 25. Rg3 {[%clk 0:01:53]}  Qd8 {[%clk 0:00:58]} 26. fxg6 {[%clk 0:01:31]}  Qxg5 {[%clk 0:00:55]} 27. Rxg5 {[%clk 0:01:26]}  Bxg6 {[%clk 0:00:54]} 28. Bxg6 {[%clk 0:01:25]}  Rxg6 {[%clk 0:00:55]} 29. Rxg6 {[%clk 0:01:22]}  hxg6 {[%clk 0:00:55]} 30. a3 {[%clk 0:01:19]}  Nd3 {[%clk 0:00:43]} 31. Rc2 {[%clk 0:01:19]}  Ne1 {[%clk 0:00:43]} 32. Re2 {[%clk 0:01:16]}  Nf3+ {[%clk 0:00:43]} 33. Kf2 {[%clk 0:01:15]}  Nxh4 {[%clk 0:00:43]} 34. Nxd5 {[%clk 0:01:15]}  Rf8+ {[%clk 0:00:42]} 35. Kg3 {[%clk 0:01:10]}  g5 {[%clk 0:00:39]} 36. Kg4 {[%clk 0:01:06]}  Nf3 {[%clk 0:00:35]} 37. Ne7 {[%clk 0:01:02]}  Re8 {[%clk 0:00:27]} 38. Nf5 {[%clk 0:00:56]}  Nh4 {[%clk 0:00:11]} 39. Nxh4 {[%clk 0:00:55]}  gxh4 {[%clk 0:00:12]} 40. Kxh4 {[%clk 0:00:55]}  Kg7 {[%clk 0:00:13]} 41. Kg4 {[%clk 0:00:55]}  Kf6 {[%clk 0:00:13]} 42. Kf4 {[%clk 0:00:55]}  Rh8 {[%clk 0:00:13]} 43. e4 {[%clk 0:00:51]}  Rh4+ {[%clk 0:00:13]} 44. Ke3 {[%clk 0:00:51]}  Rh3+ {[%clk 0:00:13]} 45. Kd2 {[%clk 0:00:51]}  Ke6 {[%clk 0:00:13]} 46. Rg2 {[%clk 0:00:46]}  a5 {[%clk 0:00:13]} 47. Rg6+ {[%clk 0:00:44]}  Kf7 {[%clk 0:00:13]} 48. Rb6 {[%clk 0:00:44]}  Rb3 {[%clk 0:00:12]} 49. d5 {[%clk 0:00:40]}  a4 {[%clk 0:00:10]} 50. e5 {[%clk 0:00:39]}  Ke7 {[%clk 0:00:09]} 51. Rb7+ {[%clk 0:00:38]}  Kd8 {[%clk 0:00:10]} 52. e6 {[%clk 0:00:38]}  Rxb2+ {[%clk 0:00:09]} 53. Kd3 {[%clk 0:00:37]}  Rb3+ {[%clk 0:00:04]} 54. Kd4 {[%clk 0:00:37]}  Rb1 {[%clk 0:00:02]} 55. Ke5 {[%clk 0:00:33]}  Re1+ {[%clk 0:00:01]} 56. Kd6 {[%clk 0:00:33]}  Kc8 {[%clk 0:00:02]} 57. Rc7+ {[%clk 0:00:33]}  Kb8 {[%clk 0:00:02]} 58. Rh7 {[%clk 0:00:31]}  b4 {[%clk 0:00:02]} 59. axb4 {[%clk 0:00:31]}  a3 {[%clk 0:00:02]} 60. Rh2 {[%clk 0:00:28]}  Kb7 {[%clk 0:00:02]} 61. Ra2 {[%clk 0:00:27]}  Re3 {[%clk 0:00:03]} 62. e7 {[%clk 0:00:27]}  Kc8 {[%clk 0:00:03]} 63. Rxa3 {[%clk 0:00:27]}  Re4 {[%clk 0:00:01]} 64. Ra8+ {[%clk 0:00:26]}  Kb7 {[%clk 0:00:02]} 65. e8=Q {[%clk 0:00:25]}  Rxe8 {[%clk 0:00:03]} 66. Rxe8 {[%clk 0:00:24]}  Kb6 {[%clk 0:00:04]} 67. Rb8+ {[%clk 0:00:24]} 1-0


[Site "https://www.chess.com"]

[Event "Titled Tuesday Blitz March 28 Late 2023"]
[White "Lopez Perdomo, Juan David"]
[Black "Rastbod, Ali"]
[WhiteFideId "4405137"]
[BlackFideId "12567477"]
[WhiteElo "1965"]
[BlackElo "2211"]
[Result "0-1"]
[Round "01"]
[TimeControl "180+2"]
[Date "2023.03.28"]
[WhiteClock "0:00:23"]
[BlackClock "0:00:08"]

1. e4 {[%clk 0:02:56]}  c6 {[%clk 0:02:58]} 2. d4 {[%clk 0:02:51]}  d5 {[%clk 0:02:59]} 3. exd5 {[%clk 0:02:41]}  cxd5 {[%clk 0:02:57]} 4. Nf3 {[%clk 0:02:31]}  Nc6 {[%clk 0:02:53]} 5. c3 {[%clk 0:02:31]}  Bg4 {[%clk 0:02:53]} 6. Be2 {[%clk 0:02:30]}  e6 {[%clk 0:02:52]} 7. O-O {[%clk 0:02:31]}  Bd6 {[%clk 0:02:52]} 8. Bg5 {[%clk 0:02:31]}  Qc7 {[%clk 0:02:51]} 9. h3 {[%clk 0:02:24]}  Bh5 {[%clk 0:02:51]} 10. Nbd2 {[%clk 0:02:14]}  Nge7 {[%clk 0:02:51]} 11. Re1 {[%clk 0:01:57]}  O-O {[%clk 0:02:35]} 12. Ne5 {[%clk 0:01:57]}  Bxe2 {[%clk 0:02:26]} 13. Qxe2 {[%clk 0:01:58]}  Bxe5 {[%clk 0:02:19]} 14. dxe5 {[%clk 0:01:59]}  Ng6 {[%clk 0:02:19]} 15. Nf3 {[%clk 0:01:48]}  b5 {[%clk 0:02:15]} 16. Qxb5 {[%clk 0:01:38]}  Ngxe5 {[%clk 0:02:07]} 17. Nxe5 {[%clk 0:01:36]}  Nxe5 {[%clk 0:02:08]} 18. Qe2 {[%clk 0:01:31]}  Nc4 {[%clk 0:02:04]} 19. b3 {[%clk 0:01:28]}  Nd6 {[%clk 0:02:02]} 20. Bf4 {[%clk 0:01:26]}  Qc6 {[%clk 0:02:02]} 21. c4 {[%clk 0:01:18]}  Nf5 {[%clk 0:01:27]} 22. Rac1 {[%clk 0:01:14]}  a5 {[%clk 0:01:04]} 23. Red1 {[%clk 0:01:11]}  d4 {[%clk 0:01:01]} 24. Be5 {[%clk 0:01:10]}  Rfd8 {[%clk 0:00:59]} 25. Rd3 {[%clk 0:01:09]}  f6 {[%clk 0:00:58]} 26. Bh2 {[%clk 0:00:50]}  e5 {[%clk 0:00:58]} 27. Re1 {[%clk 0:00:44]}  Re8 {[%clk 0:00:57]} 28. Qe4 {[%clk 0:00:43]}  Qxe4 {[%clk 0:00:57]} 29. Rxe4 {[%clk 0:00:44]}  a4 {[%clk 0:00:57]} 30. b4 {[%clk 0:00:45]}  a3 {[%clk 0:00:56]} 31. Rb3 {[%clk 0:00:40]}  Nd6 {[%clk 0:00:56]} 32. Rxd4 {[%clk 0:00:35]}  exd4 {[%clk 0:00:55]} 33. Bxd6 {[%clk 0:00:35]}  Re1+ {[%clk 0:00:39]} 34. Kh2 {[%clk 0:00:35]}  Re2 {[%clk 0:00:40]} 35. b5 {[%clk 0:00:24]}  Rb2 {[%clk 0:00:34]} 36. Rxa3 {[%clk 0:00:22]}  Rxa3 {[%clk 0:00:32]} 37. Bxa3 {[%clk 0:00:23]}  Rxa2 {[%clk 0:00:33]} 38. Bc1 {[%clk 0:00:20]}  d3 {[%clk 0:00:31]} 39. b6 {[%clk 0:00:20]}  Ra1 {[%clk 0:00:25]} 40. Be3 {[%clk 0:00:17]}  Kf7 {[%clk 0:00:11]} 41. c5 {[%clk 0:00:17]}  Ke6 {[%clk 0:00:11]} 42. c6 {[%clk 0:00:17]}  Rb1 {[%clk 0:00:09]} 43. b7 {[%clk 0:00:18]}  g5 {[%clk 0:00:08]} 44. Kg3 {[%clk 0:00:18]}  Kd6 {[%clk 0:00:08]} 45. Kf3 {[%clk 0:00:19]}  Kxc6 {[%clk 0:00:08]} 46. Ke4 {[%clk 0:00:20]}  Kxb7 {[%clk 0:00:07]} 47. Kxd3 {[%clk 0:00:20]}  Kc6 {[%clk 0:00:07]} 48. Ke4 {[%clk 0:00:21]}  Rb5 {[%clk 0:00:07]} 49. Kf3 {[%clk 0:00:19]}  Kd6 {[%clk 0:00:07]} 50. Kg4 {[%clk 0:00:20]}  Ke6 {[%clk 0:00:07]} 51. Kh5 {[%clk 0:00:21]}  Kf5 {[%clk 0:00:07]} 52. Kh6 {[%clk 0:00:22]}  Rb7 {[%clk 0:00:07]} 53. g4+ {[%clk 0:00:21]}  Ke4 {[%clk 0:00:08]} 54. h4 {[%clk 0:00:21]}  gxh4 {[%clk 0:00:08]} 55. g5 {[%clk 0:00:21]}  fxg5 {[%clk 0:00:05]} 56. Kxg5 {[%clk 0:00:21]}  h3 {[%clk 0:00:05]} 57. Bf4 {[%clk 0:00:22]}  Rg7+ {[%clk 0:00:04]} 58. Kh4 {[%clk 0:00:22]}  Kxf4 {[%clk 0:00:05]} 59. Kxh3 {[%clk 0:00:21]}  Kf3 {[%clk 0:00:05]} 60. Kh2 {[%clk 0:00:22]}  h5 {[%clk 0:00:05]} 61. Kh3 {[%clk 0:00:22]}  Rg4 {[%clk 0:00:06]} 62. Kh2 {[%clk 0:00:23]}  Kxf2 {[%clk 0:00:07]} 63. Kh3 {[%clk 0:00:23]}  Rc4 {[%clk 0:00:07]} 64. Kh2 {[%clk 0:00:23]}  Rh4# {[%clk 0:00:08]} 0-1


[Site "https://www.chess.com"]

[Event "Titled Tuesday Blitz March 28 Late 2023"]
[White "Barria Santos, Jose Guilherme"]
[Black "Sivakumar, Shaaketh"]
[WhiteFideId "1939300"]
[BlackFideId "30940176"]
[WhiteElo "2301"]
[BlackElo "2174"]
[Result "0-1"]
[Round "01"]
[TimeControl "180+2"]
[Date "2023.03.28"]
[WhiteClock "0:00:13"]
[BlackClock "0:00:56"]

1. e3 {[%clk 0:02:59]}  e6 {[%clk 0:03:00]} 2. d4 {[%clk 0:02:57]}  c5 {[%clk 0:03:01]} 3. Nf3 {[%clk 0:02:55]}  Nc6 {[%clk 0:03:01]} 4. c4 {[%clk 0:02:52]}  cxd4 {[%clk 0:02:48]} 5. exd4 {[%clk 0:02:52]}  d5 {[%clk 0:02:49]} 6. Nc3 {[%clk 0:02:50]}  Nf6 {[%clk 0:02:42]} 7. Bg5 {[%clk 0:02:49]}  Be7 {[%clk 0:02:41]} 8. Bd3 {[%clk 0:02:45]}  O-O {[%clk 0:02:38]} 9. O-O {[%clk 0:02:45]}  h6 {[%clk 0:02:37]} 10. Bh4 {[%clk 0:02:42]}  Nb4 {[%clk 0:02:35]} 11. Bb1 {[%clk 0:02:36]}  dxc4 {[%clk 0:02:30]} 12. a3 {[%clk 0:02:35]}  Nbd5 {[%clk 0:02:29]} 13. Qc2 {[%clk 0:02:18]}  g5 {[%clk 0:02:21]} 14. Nxg5 {[%clk 0:01:38]}  hxg5 {[%clk 0:02:07]} 15. Bxg5 {[%clk 0:01:38]}  Re8 {[%clk 0:01:58]} 16. Nxd5 {[%clk 0:01:33]}  Qxd5 {[%clk 0:01:53]} 17. Be3 {[%clk 0:01:04]}  Bf8 {[%clk 0:01:50]} 18. Qe2 {[%clk 0:01:00]}  Bg7 {[%clk 0:01:42]} 19. f3 {[%clk 0:00:59]}  Nd7 {[%clk 0:01:37]} 20. Be4 {[%clk 0:00:59]}  Qh5 {[%clk 0:01:36]} 21. Qxc4 {[%clk 0:00:55]}  Nf6 {[%clk 0:01:35]} 22. Bd3 {[%clk 0:00:53]}  Bd7 {[%clk 0:01:34]} 23. Qb3 {[%clk 0:00:51]}  Bc6 {[%clk 0:01:25]} 24. Rac1 {[%clk 0:00:47]}  Nd5 {[%clk 0:01:19]} 25. Bd2 {[%clk 0:00:46]}  Bxd4+ {[%clk 0:01:18]} 26. Kh1 {[%clk 0:00:46]}  Kg7 {[%clk 0:01:18]} 27. Qc4 {[%clk 0:00:42]}  e5 {[%clk 0:01:16]} 28. f4 {[%clk 0:00:13]}  Rh8 {[%clk 0:01:05]} 29. h3 {[%clk 0:00:13]}  Qxh3+ {[%clk 0:00:56]} 30. gxh3 {[%clk 0:00:12]}  Nxf4+ {[%clk 0:00:56]} 31. Kh2 {[%clk 0:00:13]}  Rxh3# {[%clk 0:00:56]} 0-1


[Site "https://www.chess.com"]

[Event "Titled Tuesday Blitz March 28 Late 2023"]
[White "Aggelis, Nikolaos"]
[Black "koteRV1610"]
[WhiteFideId "4213220"]
[WhiteElo "2189"]
[BlackElo "2171"]
[Result "0-1"]
[Round "01"]
[TimeControl "180+2"]
[Date "2023.03.28"]
[WhiteClock "0:00:16"]
[BlackClock "0:00:39"]

1. c4 {[%clk 0:02:59]}  Nf6 {[%clk 0:02:56]} 2. g3 {[%clk 0:02:56]}  e6 {[%clk 0:02:55]} 3. Bg2 {[%clk 0:02:55]}  d5 {[%clk 0:02:54]} 4. Nf3 {[%clk 0:02:54]}  Be7 {[%clk 0:02:52]} 5. O-O {[%clk 0:02:55]}  O-O {[%clk 0:02:51]} 6. b3 {[%clk 0:02:55]}  d4 {[%clk 0:02:50]} 7. Bb2 {[%clk 0:02:54]}  c5 {[%clk 0:02:49]} 8. e3 {[%clk 0:02:54]}  Nc6 {[%clk 0:02:47]} 9. b4 {[%clk 0:02:49]}  dxe3 {[%clk 0:02:39]} 10. fxe3 {[%clk 0:02:50]}  Nxb4 {[%clk 0:02:37]} 11. d4 {[%clk 0:02:50]}  Qc7 {[%clk 0:02:29]} 12. Na3 {[%clk 0:02:43]}  a6 {[%clk 0:02:27]} 13. Ne5 {[%clk 0:02:41]}  Rb8 {[%clk 0:02:21]} 14. Rc1 {[%clk 0:02:40]}  b6 {[%clk 0:02:17]} 15. Nc2 {[%clk 0:02:28]}  Bb7 {[%clk 0:02:03]} 16. Nxb4 {[%clk 0:02:26]}  cxb4 {[%clk 0:02:03]} 17. Bxb7 {[%clk 0:02:11]}  Qxb7 {[%clk 0:02:04]} 18. Qf3 {[%clk 0:02:03]}  Qxf3 {[%clk 0:01:42]} 19. Rxf3 {[%clk 0:02:04]}  Bd6 {[%clk 0:01:41]} 20. Rxf6 {[%clk 0:01:42]}  gxf6 {[%clk 0:01:41]} 21. Nd7 {[%clk 0:01:43]}  Rbc8 {[%clk 0:01:28]} 22. d5 {[%clk 0:01:38]}  e5 {[%clk 0:01:22]} 23. Nxf6+ {[%clk 0:01:21]}  Kg7 {[%clk 0:01:22]} 24. Ne4 {[%clk 0:01:22]}  Bb8 {[%clk 0:01:23]} 25. g4 {[%clk 0:01:18]}  f5 {[%clk 0:01:15]} 26. gxf5 {[%clk 0:01:15]}  Rxf5 {[%clk 0:01:16]} 27. Ng3 {[%clk 0:01:16]}  Rf3 {[%clk 0:01:12]} 28. Kg2 {[%clk 0:01:10]}  Rcf8 {[%clk 0:01:09]} 29. Rf1 {[%clk 0:00:47]}  Rxf1 {[%clk 0:01:05]} 30. Nxf1 {[%clk 0:00:48]}  Kg6 {[%clk 0:01:03]} 31. Nd2 {[%clk 0:00:43]}  Kf5 {[%clk 0:01:01]} 32. Kg3 {[%clk 0:00:38]}  e4+ {[%clk 0:00:59]} 33. Kg2 {[%clk 0:00:38]}  Rg8+ {[%clk 0:00:59]} 34. Kh1 {[%clk 0:00:36]}  Be5 {[%clk 0:00:51]} 35. Bc1 {[%clk 0:00:23]}  Rc8 {[%clk 0:00:48]} 36. Kg2 {[%clk 0:00:22]}  b5 {[%clk 0:00:45]} 37. a3 {[%clk 0:00:18]}  bxa3 {[%clk 0:00:41]} 38. Bxa3 {[%clk 0:00:19]}  bxc4 {[%clk 0:00:41]} 39. Kf2 {[%clk 0:00:18]}  c3 {[%clk 0:00:42]} 40. Nb3 {[%clk 0:00:18]}  c2 {[%clk 0:00:42]} 41. h3 {[%clk 0:00:19]}  Rc3 {[%clk 0:00:41]} 42. d6 {[%clk 0:00:16]}  Rxb3 {[%clk 0:00:39]} 43. d7 {[%clk 0:00:17]}  Bc7 {[%clk 0:00:40]} 44. Bd6 {[%clk 0:00:16]}  Bd8 {[%clk 0:00:39]} 0-1


[Site "https://www.chess.com"]

[Event "Titled Tuesday Blitz March 28 Late 2023"]
[White "Grebeniuk, Semen"]
[Black "KSho99"]
[WhiteFideId "14117509"]
[WhiteElo "2266"]
[BlackElo "2148"]
[Result "1-0"]
[Round "01"]
[TimeControl "180+2"]
[Date "2023.03.28"]
[WhiteClock "0:00:40"]
[BlackClock "0:00:03"]

1. d4 {[%clk 0:02:56]}  d5 {[%clk 0:02:59]} 2. Nf3 {[%clk 0:02:56]}  Nf6 {[%clk 0:02:58]} 3. c4 {[%clk 0:02:56]}  dxc4 {[%clk 0:02:54]} 4. e3 {[%clk 0:02:56]}  e6 {[%clk 0:02:54]} 5. Bxc4 {[%clk 0:02:56]}  c5 {[%clk 0:02:54]} 6. O-O {[%clk 0:02:56]}  a6 {[%clk 0:02:53]} 7. Qe2 {[%clk 0:02:56]}  b5 {[%clk 0:02:48]} 8. Bb3 {[%clk 0:02:55]}  Bb7 {[%clk 0:02:43]} 9. Rd1 {[%clk 0:02:55]}  Nbd7 {[%clk 0:02:41]} 10. a4 {[%clk 0:02:56]}  Qb6 {[%clk 0:02:29]} 11. Nc3 {[%clk 0:02:49]}  b4 {[%clk 0:02:07]} 12. a5 {[%clk 0:02:49]}  Qc7 {[%clk 0:02:01]} 13. Na4 {[%clk 0:02:20]}  cxd4 {[%clk 0:01:58]} 14. exd4 {[%clk 0:02:14]}  Be7 {[%clk 0:01:51]} 15. Ne5 {[%clk 0:02:03]}  Nxe5 {[%clk 0:01:41]} 16. dxe5 {[%clk 0:02:01]}  Nd7 {[%clk 0:01:36]} 17. Qg4 {[%clk 0:01:37]}  Qxe5 {[%clk 0:01:03]} 18. Bf4 {[%clk 0:01:33]}  Qf5 {[%clk 0:00:42]} 19. Qxg7 {[%clk 0:01:21]}  Qg6 {[%clk 0:00:28]} 20. Qxg6 {[%clk 0:00:51]}  hxg6 {[%clk 0:00:28]} 21. Rac1 {[%clk 0:00:46]}  e5 {[%clk 0:00:18]} 22. Rc7 {[%clk 0:00:44]}  exf4 {[%clk 0:00:06]} 23. Rdxd7 {[%clk 0:00:42]}  O-O {[%clk 0:00:03]} 24. Rxb7 {[%clk 0:00:40]} 1-0


[Site "https://www.chess.com"]

[Event "Titled Tuesday Blitz March 28 Late 2023"]
[White "dDobravcan"]
[Black "Cori T., Deysi"]
[BlackFideId "3801934"]
[WhiteElo "2148"]
[BlackElo "2292"]
[Result "0-1"]
[Round "01"]
[TimeControl "180+2"]
[Date "2023.03.28"]
[WhiteClock "0:00:46"]
[BlackClock "0:01:17"]

1. e4 {[%clk 0:02:59]}  e6 {[%clk 0:02:57]} 2. d4 {[%clk 0:02:58]}  d5 {[%clk 0:02:58]} 3. e5 {[%clk 0:02:57]}  c5 {[%clk 0:02:57]} 4. c3 {[%clk 0:02:57]}  Nc6 {[%clk 0:02:58]} 5. Nf3 {[%clk 0:02:56]}  Nge7 {[%clk 0:02:58]} 6. Bd3 {[%clk 0:02:53]}  cxd4 {[%clk 0:02:50]} 7. cxd4 {[%clk 0:02:50]}  Nf5 {[%clk 0:02:50]} 8. O-O {[%clk 0:02:31]}  Nfxd4 {[%clk 0:02:41]} 9. Nxd4 {[%clk 0:02:28]}  Nxd4 {[%clk 0:02:42]} 10. Be3 {[%clk 0:02:25]}  Nf5 {[%clk 0:02:42]} 11. Bxf5 {[%clk 0:02:11]}  exf5 {[%clk 0:02:43]} 12. Nc3 {[%clk 0:02:10]}  Be6 {[%clk 0:02:41]} 13. Qa4+ {[%clk 0:02:06]}  Qd7 {[%clk 0:02:41]} 14. Qxd7+ {[%clk 0:02:02]}  Kxd7 {[%clk 0:02:42]} 15. Rfd1 {[%clk 0:02:00]}  Be7 {[%clk 0:01:50]} 16. Nxd5 {[%clk 0:01:57]}  Bxd5 {[%clk 0:01:50]} 17. Rxd5+ {[%clk 0:01:57]}  Ke6 {[%clk 0:01:51]} 18. Rad1 {[%clk 0:01:52]}  Rhc8 {[%clk 0:01:50]} 19. f4 {[%clk 0:01:43]}  Rc2 {[%clk 0:01:43]} 20. R1d2 {[%clk 0:01:37]}  Rac8 {[%clk 0:01:42]} 21. Kf2 {[%clk 0:01:33]}  Bb4 {[%clk 0:01:35]} 22. Rxc2 {[%clk 0:01:25]}  Rxc2+ {[%clk 0:01:36]} 23. Kf3 {[%clk 0:01:25]}  a6 {[%clk 0:01:29]} 24. Rd3 {[%clk 0:01:13]}  Rxb2 {[%clk 0:01:22]} 25. Bd4 {[%clk 0:01:10]}  Rxa2 {[%clk 0:01:20]} 26. Rb3 {[%clk 0:01:11]}  Ra3 {[%clk 0:01:19]} 27. Rxa3 {[%clk 0:01:10]}  Bxa3 {[%clk 0:01:20]} 28. Ke3 {[%clk 0:01:10]}  Kd5 {[%clk 0:01:19]} 29. Kd3 {[%clk 0:01:10]}  Bc5 {[%clk 0:01:19]} 30. Bc3 {[%clk 0:01:07]}  b5 {[%clk 0:01:19]} 31. h3 {[%clk 0:01:03]}  g6 {[%clk 0:01:17]} 32. g4 {[%clk 0:01:00]}  b4 {[%clk 0:01:17]} 33. Bd2 {[%clk 0:00:57]}  a5 {[%clk 0:01:17]} 34. gxf5 {[%clk 0:00:55]}  gxf5 {[%clk 0:01:18]} 35. Bc1 {[%clk 0:00:54]}  a4 {[%clk 0:01:18]} 36. Bb2 {[%clk 0:00:54]}  a3 {[%clk 0:01:17]} 37. Ba1 {[%clk 0:00:46]}  b3 {[%clk 0:01:17]} 0-1


[Site "https://www.chess.com"]

[Event "Titled Tuesday Blitz March 28 Late 2023"]
[White "Fiorito, Joaquin"]
[Black "Hartikainen, Jarmo"]
[WhiteFideId "180173"]
[BlackFideId "503134"]
[WhiteElo "2157"]
[BlackElo "2145"]
[Result "1-0"]
[Round "01"]
[TimeControl "180+2"]
[Date "2023.03.28"]
[WhiteClock "0:01:26"]
[BlackClock "0:00:04"]

1. d4 {[%clk 0:03:00]}  Nf6 {[%clk 0:02:59]} 2. c4 {[%clk 0:03:00]}  e6 {[%clk 0:02:59]} 3. Nc3 {[%clk 0:03:00]}  Bb4 {[%clk 0:02:58]} 4. f3 {[%clk 0:03:00]}  d5 {[%clk 0:02:57]} 5. a3 {[%clk 0:03:01]}  Bxc3+ {[%clk 0:02:56]} 6. bxc3 {[%clk 0:03:02]}  O-O {[%clk 0:02:48]} 7. cxd5 {[%clk 0:03:02]}  exd5 {[%clk 0:02:45]} 8. e3 {[%clk 0:03:02]}  Re8 {[%clk 0:02:41]} 9. Bd3 {[%clk 0:03:02]}  b6 {[%clk 0:02:41]} 10. Ne2 {[%clk 0:03:03]}  Ba6 {[%clk 0:02:36]} 11. O-O {[%clk 0:03:03]}  Bxd3 {[%clk 0:02:35]} 12. Qxd3 {[%clk 0:03:04]}  Nbd7 {[%clk 0:02:29]} 13. Ng3 {[%clk 0:03:02]}  c5 {[%clk 0:02:23]} 14. Bb2 {[%clk 0:03:01]}  c4 {[%clk 0:02:20]} 15. Qd2 {[%clk 0:03:00]}  b5 {[%clk 0:02:20]} 16. Rae1 {[%clk 0:02:59]}  Qb6 {[%clk 0:01:57]} 17. Qf2 {[%clk 0:02:56]}  a5 {[%clk 0:01:55]} 18. e4 {[%clk 0:02:54]}  b4 {[%clk 0:01:48]} 19. e5 {[%clk 0:02:53]}  bxc3 {[%clk 0:01:11]} 20. Bxc3 {[%clk 0:02:52]}  Qb3 {[%clk 0:01:11]} 21. Qd2 {[%clk 0:02:45]}  Qxa3 {[%clk 0:01:05]} 22. Ra1 {[%clk 0:02:41]}  Qe7 {[%clk 0:00:57]} 23. exf6 {[%clk 0:02:39]}  Qxf6 {[%clk 0:00:57]} 24. Rxa5 {[%clk 0:02:35]}  Rxa5 {[%clk 0:00:53]} 25. Bxa5 {[%clk 0:02:36]}  h6 {[%clk 0:00:36]} 26. Bc3 {[%clk 0:02:25]}  Qh4 {[%clk 0:00:27]} 27. Re1 {[%clk 0:02:21]}  Rb8 {[%clk 0:00:26]} 28. Nf5 {[%clk 0:02:14]}  Qh5 {[%clk 0:00:23]} 29. Ne7+ {[%clk 0:01:56]}  Kh8 {[%clk 0:00:19]} 30. Nc6 {[%clk 0:01:56]}  Rb3 {[%clk 0:00:18]} 31. Ne5 {[%clk 0:01:57]}  Nf6 {[%clk 0:00:17]} 32. Bb4 {[%clk 0:01:51]}  Qf5 {[%clk 0:00:17]} 33. Nxf7+ {[%clk 0:01:45]}  Kh7 {[%clk 0:00:16]} 34. Ne5 {[%clk 0:01:42]}  h5 {[%clk 0:00:11]} 35. Bc3 {[%clk 0:01:39]}  h4 {[%clk 0:00:11]} 36. h3 {[%clk 0:01:38]}  Nh5 {[%clk 0:00:09]} 37. Ng4 {[%clk 0:01:38]}  Nf4 {[%clk 0:00:09]} 38. Re5 {[%clk 0:01:36]}  Qb1+ {[%clk 0:00:08]} 39. Kh2 {[%clk 0:01:36]}  Rxc3 {[%clk 0:00:08]} 40. Qxf4 {[%clk 0:01:28]}  Rc1 {[%clk 0:00:04]} 41. Nf2 {[%clk 0:01:26]} 1-0


[Site "https://www.chess.com"]